bitfinex/quotes_BTCUSD_20241014
["timestamp","ask_amount","ask_price","bid_price","bid_amount"]
[1728905687467,0.153905,64975.0,64972.0,0.15352847]
[1728905687699,0.15391,64973.0,64972.0,0.15352847]
[1728905688370,0.15391,64973.0,64972.0,0.15348847]
[1728905688801,0.307813,64975.0,64972.0,0.15348847]
[1728905689066,0.002,64973.0,64972.0,0.15348847]
[1728905689503,0.15591,64973.0,64972.0,0.15348847]
[1728905689935,0.15491,64973.0,64972.0,0.15348847]
[1728905690163,0.15391,64973.0,64972.0,0.15348847]
[1728905690393,0.153908,64974.0,64972.0,0.15348847]
[1728905691332,0.001,64973.0,64972.0,0.15348847]
[1728905691575,0.001,64975.0,64972.0,0.15348847]
[1728905691576,0.153909,64974.0,64972.0,0.15348847]
[1728905691800,0.001,64975.0,64972.0,0.15348847]
[1728905692018,0.001,64974.0,64972.0,0.15348847]
[1728905692236,0.154908,64974.0,64972.0,0.15348847]
[1728905692454,0.001,64974.0,64972.0,0.15348847]
[1728905692683,0.15391,64973.0,64972.0,0.15348847]
[1728905692923,0.002,64974.0,64972.0,0.15348847]
[1728905693378,0.15391,64973.0,64972.0,0.15348847]
[1728905693613,0.154908,64974.0,64972.0,0.15348847]
[1728905693842,0.15491,64973.0,64972.0,0.15348847]
[1728905694052,0.001,64973.0,64972.0,0.15348847]
[1728905694321,0.15491,64973.0,64972.0,0.15348847]
[1728905694551,0.001,64973.0,64971.0,0.153914]
[1728905694788,0.001,64973.0,64971.0,0.15352847]
[1728905695500,0.307804,64977.0,64971.0,0.15352847]
[1728905695687,0.001,64973.0,64971.0,0.15352847]
[1728905696533,0.002,64973.0,64971.0,0.15352847]
[1728905696799,0.002,64973.0,64963.0,0.172324]
[1728905696800,0.307825,64972.0,64963.0,0.172324]
[1728905697020,0.001,64973.0,64968.0,0.15392]
[1728905697261,0.001,64973.0,64968.0,0.30744847]
[1728905697723,0.001,64973.0,64969.0,0.153918]
[1728905697937,0.001,64973.0,64969.0,0.153919]
[1728905698152,0.23046962,64974.0,64969.0,0.153919]
[1728905698362,0.002,64973.0,64969.0,0.153919]
[1728905698575,0.155912,64973.0,64968.0,0.15352847]
[1728905698779,0.001,64973.0,64968.0,0.30744947]
[1728905698992,0.001,64973.0,64963.0,0.172324]
[1728905698993,0.307845,64968.0,64963.0,0.172324]
[1728905699207,0.153917,64970.0,64963.0,0.000824]
[1728905699436,0.002,64973.0,64966.0,0.307852]
[1728905699649,0.002,64973.0,64967.0,0.15352847]
[1728905699650,0.23046962,64972.0,64967.0,0.15352847]
[1728905699865,0.23046962,64972.0,64971.0,0.153914]
[1728905700297,0.001,64973.0,64972.0,0.153912]
[1728905700524,0.002,64973.0,64972.0,0.30744047]
[1728905700746,0.001648,64973.0,64972.0,0.66400668]
[1728905700963,0.002648,64973.0,64972.0,0.65892869]
[1728905701168,0.002648,64973.0,64972.0,0.72798282]
[1728905701378,0.002648,64973.0,64972.0,0.65892869]
[1728905701884,0.002648,64973.0,64972.0,0.75300086]
[1728905702114,0.001648,64973.0,64972.0,0.8740189]
[1728905702326,0.011646,64979.0,64978.0,0.237998]
[1728905702543,0.011646,64979.0,64978.0,0.6157633]
[1728905702769,0.011646,64979.0,64978.0,0.56471469]
[1728905702979,0.011646,64979.0,64978.0,0.61068448]
[1728905703218,0.011646,64979.0,64978.0,0.81178448]
[1728905703450,0.23046962,64996.0,64989.0,0.005]
[1728905703671,0.23046962,64996.0,64993.0,0.158862]
[1728905703893,0.23046962,64996.0,64993.0,0.33512701]
[1728905704114,0.23046962,64996.0,64993.0,0.33205022]
[1728905704365,0.23046962,64996.0,64993.0,0.153862]
[1728905704593,0.23046962,64996.0,64990.0,0.1761]
[1728905704817,0.307682,65003.0,64993.0,0.32139047]
[1728905705469,0.307675,65004.0,64993.0,0.32139047]
[1728905705691,0.153844,65001.0,64993.0,0.30739047]
[1728905706123,0.307675,65004.0,64993.0,0.30739047]
[1728905706339,0.23046962,65005.0,64993.0,0.48365572]
[1728905706554,0.23046962,65005.0,64993.0,0.48557869]
[1728905706791,0.23046962,65005.0,64993.0,0.58757869]
[1728905707051,0.002652,64994.0,64993.0,0.63946563]
[1728905707277,0.23046962,65005.0,65004.0,0.258836]
[1728905707493,0.23046962,65005.0,65004.0,0.40736447]
[1728905707710,0.23046962,65005.0,65004.0,0.30736447]
[1728905708149,0.23046962,65013.0,65007.0,0.153829]
[1728905708414,0.23046962,65013.0,65007.0,0.30735747]
[1728905710264,0.23046962,65020.0,65007.0,0.31543375]
[1728905710488,0.23046962,65020.0,65007.0,0.38995747]
[1728905710957,0.002652,65008.0,65007.0,0.40195747]
[1728905711191,0.002652,65008.0,65007.0,0.40795747]
[1728905713135,0.002652,65008.0,65007.0,0.50515747]
[1728905713361,0.002652,65008.0,65007.0,0.50715747]
[1728905714191,0.002652,65008.0,65007.0,0.50515747]
[1728905714861,0.002652,65008.0,65007.0,0.50015747]
[1728905715289,0.002652,65008.0,65007.0,0.17152847]
[1728905715516,0.002652,65008.0,65007.0,0.018]
[1728905715517,0.156479,65008.0,65007.0,0.018]
[1728905716448,0.156479,65008.0,65007.0,0.012]
[1728905716691,0.002652,65008.0,64992.0,0.005]
[1728905716932,0.002652,65008.0,64998.0,0.307697]
[1728905717145,0.153832,65006.0,65000.0,0.153845]
[1728905717372,0.153839,65003.0,65001.0,0.15352847]
[1728905717604,0.23046962,65004.0,65001.0,0.15352847]
[1728905717605,0.153837,65004.0,65001.0,0.15352847]
[1728905717833,0.31031,65008.0,65001.0,0.15352847]
[1728905718059,0.153836,65005.0,65001.0,0.15352847]
[1728905718317,0.001652,65008.0,65001.0,0.15352847]
[1728905718572,0.001652,65008.0,65007.0,0.153829]
[1728905718801,0.001652,65008.0,65007.0,0.30735747]
[1728905721160,0.002652,65008.0,65007.0,0.30735747]
[1728905721618,0.002652,65008.0,65007.0,0.31135747]
[1728905723410,0.001652,65008.0,65007.0,0.30735747]
[1728905723645,0.001652,65008.0,65007.0,0.30935747]
[1728905723873,0.002652,65008.0,65007.0,0.31635747]
[1728905724141,0.001652,65008.0,65007.0,0.31235747]
[1728905724397,0.001652,65008.0,65007.0,0.31743349]
[1728905724659,0.002652,65008.0,65007.0,0.32643349]
[1728905724904,0.002652,65008.0,65007.0,0.32335747]
[1728905725128,0.002652,65008.0,65007.0,0.32035747]
[1728905725342,0.002652,65008.0,65007.0,0.32635747]
[1728905726264,0.002652,65008.0,65007.0,0.42635747]
[1728905726476,0.002652,65008.0,65007.0,0.49501939]
[1728905726706,0.23046962,65020.0,65019.0,0.153801]
[1728905726926,0.23046962,65020.0,65019.0,0.30732947]
[1728905727135,0.23046962,65020.0,65019.0,0.39012947]
[1728905727374,0.23046962,65027.0,65026.0,0.153784]
[1728905727801,0.23046962,65027.0,65026.0,0.30731247]
[1728905728287,0.00165,65032.0,65031.0,0.153772]
[1728905728503,0.00165,65032.0,65031.0,0.30730047]
[1728905729158,0.00165,65032.0,65031.0,0.31007319]
[1728905729370,0.00165,65032.0,65031.0,0.30730047]
[1728905729808,0.00165,65032.0,65031.0,0.31037555]
[1728905730237,0.00165,65032.0,65031.0,0.30730047]
[1728905730695,0.00165,65032.0,65031.0,0.31730047]
[1728905731116,0.00165,65032.0,65031.0,0.33030047]
[1728905734623,0.00165,65032.0,65031.0,0.33530047]
[1728905735040,0.00165,65032.0,65031.0,0.41620047]
[1728905735244,0.00165,65032.0,65031.0,0.51620047]
[1728905736540,0.00165,65032.0,65031.0,0.51820047]
[1728905739372,0.00165,65032.0,65031.0,0.51620047]
[1728905741519,0.00165,65032.0,65031.0,0.17652847]
[1728905741731,0.15542,65032.0,65031.0,0.17652847]
[1728905741973,0.38588962,65032.0,65031.0,0.023]
[1728905742425,0.23592,65032.0,65031.0,0.023]
[1728905742644,0.23592,65032.0,65031.0,0.01]
[1728905743081,0.23592,65032.0,65031.0,0.019]
[1728905743754,0.23592,65032.0,65031.0,0.009]
[1728905743992,0.153784,65027.0,65020.0,0.307594]
[1728905744222,0.30755,65030.0,65021.0,0.15352847]
[1728905744442,0.153785,65026.0,65021.0,0.30732347]
[1728905744656,0.08415,65032.0,65007.0,0.4761]
[1728905744866,0.08415,65032.0,65011.0,0.307639]
[1728905745084,0.307576,65025.0,65012.0,0.15352847]
[1728905745303,0.153792,65023.0,65012.0,0.15352847]
[1728905745530,0.153795,65022.0,65015.0,0.153808]
[1728905745752,0.153795,65022.0,65016.0,0.30733547]
[1728905745965,0.23046962,65019.0,65016.0,0.15352847]
[1728905746176,0.153794,65022.0,65016.0,0.15352847]
[1728905746392,0.153794,65022.0,65021.0,0.005]
[1728905747044,0.53803462,65027.0,65016.0,0.15352847]
[1728905747045,0.23046962,65027.0,65016.0,0.15352847]
[1728905747261,0.307597,65021.0,65016.0,0.15952847]
[1728905747704,0.153801,65019.0,65016.0,0.15352847]
[1728905748169,0.461395,65021.0,65016.0,0.15352847]
[1728905748435,0.461395,65021.0,65016.0,0.15440847]
[1728905748652,0.153802,65019.0,65016.0,0.15340847]
[1728905749075,0.153801,65019.0,65016.0,0.15640847]
[1728905749732,0.153805,65017.0,65016.0,0.15640847]
[1728905749956,0.153805,65017.0,65016.0,0.003]
[1728905750168,0.333105,65017.0,65016.0,0.003]
[1728905750387,0.333105,65017.0,65016.0,0.007]
[1728905750817,0.153831,65007.0,65001.0,0.153843]
[1728905751037,0.153831,65007.0,65002.0,0.15352847]
[1728905751038,0.153834,65006.0,65002.0,0.15352847]
[1728905751246,0.153835,65005.0,65002.0,0.15352847]
[1728905751463,0.307661,65007.0,65002.0,0.15352847]
[1728905751671,0.153832,65006.0,65002.0,0.15352847]
[1728905751859,0.153835,65005.0,65002.0,0.15352847]
[1728905752576,0.153835,65005.0,65002.0,0.16752847]
[1728905752782,0.153832,65006.0,65002.0,0.16752847]
[1728905753417,0.30765,65009.0,65002.0,0.16752847]
[1728905753683,0.153839,65003.0,65002.0,0.16752847]
[1728905753910,0.153839,65003.0,65002.0,0.007]
[1728905754341,0.001,65006.0,65003.0,0.153838]
[1728905754561,0.23046962,65008.0,65003.0,0.15352847]
[1728905754774,0.307661,65007.0,65003.0,0.15352847]
[1728905754988,0.153832,65006.0,65003.0,0.15352847]
[1728905755209,0.307661,65007.0,65003.0,0.15352847]
[1728905755426,0.307661,65007.0,65002.0,0.019]
[1728905755427,0.153839,65003.0,65002.0,0.019]
[1728905755643,0.153839,65003.0,65002.0,0.005]
[1728905756332,0.461504,65005.0,64996.0,0.153854]
[1728905756555,0.153841,65002.0,64997.0,0.15352847]
[1728905757194,0.30768,65003.0,64997.0,0.15352847]
[1728905757452,0.23046962,65001.0,64994.0,0.000823]
[1728905757687,0.153857,64995.0,64994.0,0.000823]
[1728905757928,0.307694,65000.0,64994.0,0.000823]
[1728905758162,0.53816362,65000.0,64994.0,0.000823]
[1728905758388,0.53816362,65000.0,64997.0,0.012]
[1728905758389,0.38431662,65000.0,64997.0,0.012]
[1728905758620,0.15385,64998.0,64997.0,0.026]
[1728905758881,0.38431762,65000.0,64997.0,0.012]
[1728905759538,0.38431762,65000.0,64994.0,0.154681]
[1728905759759,0.38431762,65000.0,64995.0,0.15352847]
[1728905759760,0.153848,64999.0,64995.0,0.15352847]
[1728905760031,0.307677,65004.0,64995.0,0.46124347]
[1728905760272,0.23046962,65008.0,64995.0,0.15352847]
[1728905760518,0.23046962,65008.0,65005.0,0.153833]
[1728905760982,0.23046962,65018.0,65006.0,0.15352847]
[1728905761203,0.23046962,65018.0,65017.0,0.153805]
[1728905761449,0.23046962,65018.0,65017.0,0.30733347]
[1728905761909,0.307569,65026.0,65017.0,0.15352847]
[1728905762120,0.23046962,65027.0,65018.0,0.15352847]
[1728905762121,0.153792,65023.0,65018.0,0.15352847]
[1728905762332,0.307581,65024.0,65018.0,0.15352847]
[1728905762773,0.153791,65024.0,65019.0,0.1538]
[1728905762996,0.153787,65025.0,65020.0,0.30732647]
[1728905763211,0.307573,65026.0,65020.0,0.15352847]
[1728905763430,0.461361,65025.0,65020.0,0.15352847]
[1728905763646,0.153794,65022.0,65020.0,0.15352847]
[1728905764130,0.153792,65023.0,65020.0,0.15352847]
[1728905764355,0.154792,65023.0,65020.0,0.15352847]
[1728905764570,0.53803562,65027.0,65020.0,0.15352847]
[1728905764571,0.23046962,65027.0,65020.0,0.15352847]
[1728905764801,0.153796,65021.0,65020.0,0.15852847]
[1728905765022,0.153796,65021.0,65020.0,0.019]
[1728905765238,0.153796,65021.0,65020.0,0.005]
[1728905766110,0.307617,65016.0,65008.0,0.153826]
[1728905766338,0.307551,65030.0,65009.0,0.15352847]
[1728905766339,0.307613,65017.0,65009.0,0.15352847]
[1728905766580,0.23046962,65020.0,65002.0,0.15352847]
[1728905766581,0.153835,65005.0,65002.0,0.15352847]
[1728905767023,0.307653,65009.0,65002.0,0.15352847]
[1728905767024,0.153839,65003.0,65002.0,0.15352847]
[1728905767325,0.0989,65011.0,64994.0,0.000823]
[1728905767544,0.153857,64995.0,64994.0,0.000823]
[1728905769119,0.001,64995.0,64994.0,0.014823]
[1728905769351,0.001,64995.0,64994.0,0.32221147]
[1728905770045,0.001,64995.0,64994.0,0.33321147]
[1728905771399,0.001,64995.0,64994.0,0.50111147]
[1728905772351,0.001,64995.0,64994.0,0.17935147]
[1728905772615,0.154857,64995.0,64994.0,0.17935147]
[1728905774295,0.154857,64995.0,64994.0,0.025823]
[1728905776237,0.153857,64995.0,64994.0,0.000823]
[1728905776480,0.153857,64995.0,64994.0,0.005823]
[1728905776736,0.154857,64995.0,64994.0,0.019823]
[1728905776999,0.26924051,64995.0,64994.0,0.019823]
[1728905777499,0.27424051,64995.0,64994.0,0.019823]
[1728905777980,0.259857,64995.0,64994.0,0.019823]
[1728905778187,0.258857,64995.0,64994.0,0.005823]
[1728905778706,0.258857,64995.0,64994.0,0.011823]
[1728905778949,0.258857,64995.0,64994.0,0.006823]
[1728905779285,0.260857,64995.0,64994.0,0.007823]
[1728905780009,0.27523128,64995.0,64994.0,0.007823]
[1728905780961,0.002,64995.0,64994.0,0.007823]
[1728905781971,0.153857,64995.0,64994.0,0.006823]
[1728905782474,0.153853,64997.0,64994.0,0.005823]
[1728905782702,0.307697,64999.0,64994.0,0.005823]
[1728905782928,0.307697,64999.0,64994.0,0.019823]
[1728905782929,0.154857,64995.0,64994.0,0.019823]
[1728905783408,0.154857,64995.0,64994.0,0.014823]
[1728905783632,0.153857,64995.0,64994.0,0.000823]
[1728905783866,0.153857,64995.0,64994.0,0.003823]
[1728905785244,0.153857,64995.0,64994.0,0.014823]
[1728905785486,0.153857,64995.0,64994.0,0.005823]
[1728905786113,0.153857,64995.0,64994.0,0.019823]
[1728905791162,0.253857,64995.0,64994.0,0.019823]
[1728905791394,0.26822457,64995.0,64994.0,0.019823]
[1728905791623,0.27322457,64995.0,64994.0,0.019823]
[1728905791863,0.55193274,64995.0,64994.0,0.014823]
[1728905792124,0.50687788,64995.0,64994.0,0.000823]
[1728905792386,0.45275304,64995.0,64994.0,0.006823]
[1728905792651,0.45672252,64995.0,64994.0,0.006823]
[1728905793129,0.456729,64995.0,64994.0,0.006823]
[1728905796368,0.458729,64995.0,64994.0,0.006823]
[1728905796617,0.456729,64995.0,64994.0,0.006823]
[1728905797133,0.16925152,64995.0,64994.0,0.006823]
[1728905797647,0.01539628,64995.0,64994.0,0.006823]
[1728905797913,0.01539628,64995.0,64994.0,0.160683]
[1728905798148,0.01539628,64995.0,64994.0,0.49171147]
[1728905798385,0.001,64995.0,64994.0,0.49171147]
[1728905798624,0.23046962,65006.0,64998.0,0.307699]
[1728905798868,0.23046962,64999.0,64996.0,0.307707]
[1728905799103,0.23046962,65006.0,64997.0,0.153853]
[1728905799104,0.153842,65002.0,64997.0,0.153853]
[1728905799387,0.307673,65004.0,64996.0,0.307707]
[1728905799627,0.307673,65004.0,64998.0,0.15385]
[1728905799628,0.153842,65002.0,64998.0,0.15385]
[1728905799859,0.307674,65004.0,64994.0,0.192323]
[1728905800117,0.153841,65002.0,64998.0,0.153849]
[1728905800345,0.53813662,65006.0,64994.0,0.178323]
[1728905800598,0.53813462,65006.0,64996.0,0.307709]
[1728905800836,0.153857,64995.0,64994.0,0.178323]
[1728905801091,0.153857,64995.0,64994.0,0.087523]
[1728905801577,0.153857,64995.0,64994.0,0.000823]
[1728905802449,0.153857,64995.0,64994.0,0.014823]
[1728905803323,0.2682542,64995.0,64994.0,0.014823]
[1728905803542,0.2682542,64995.0,64975.0,0.398209]
[1728905803543,0.005,64993.0,64975.0,0.0904]
[1728905803757,0.153899,64978.0,64973.0,0.153909]
[1728905803974,0.153899,64978.0,64974.0,0.153907]
[1728905804187,0.307791,64980.0,64973.0,0.15352847]
[1728905804188,0.461685,64980.0,64976.0,0.153902]
[1728905804663,0.153894,64980.0,64976.0,0.153902]
[1728905805107,0.153896,64979.0,64975.0,0.153904]
[1728905805332,0.153896,64979.0,64974.0,0.307812]
[1728905805559,0.153896,64979.0,64976.0,0.160902]
[1728905805775,0.153896,64979.0,64976.0,0.174902]
[1728905806225,0.153896,64979.0,64976.0,0.160902]
[1728905806646,0.38436262,64981.0,64976.0,0.160902]
[1728905806856,0.153895,64980.0,64976.0,0.153902]
[1728905807073,0.153899,64978.0,64975.0,0.153905]
[1728905807288,0.153895,64980.0,64976.0,0.153902]
[1728905807940,0.153896,64979.0,64976.0,0.153902]
[1728905808158,0.001,64979.0,64977.0,0.1539]
[1728905808379,0.153893,64980.0,64976.0,0.161902]
[1728905808815,0.154893,64980.0,64976.0,0.174902]
[1728905809033,0.001,64980.0,64978.0,0.153898]
[1728905809281,0.005,65001.0,64979.0,0.15352847]
[1728905809576,0.23046962,64983.0,64982.0,0.153888]
[1728905809808,0.23046962,64990.0,64982.0,0.15352847]
[1728905810047,0.23046962,64990.0,64980.0,0.1804]
[1728905810048,0.23046962,64990.0,64983.0,0.15352847]
[1728905810279,0.23046962,64990.0,64987.0,0.153876]
[1728905810524,0.38434062,64990.0,64986.0,0.153877]
[1728905810749,0.23046962,64990.0,64983.0,0.15352847]
[1728905810980,0.153873,64989.0,64986.0,0.153879]
[1728905811216,0.38634062,64990.0,64986.0,0.153878]
[1728905811461,0.23246962,64990.0,64983.0,0.15352847]
[1728905811701,0.153857,64996.0,64987.0,0.15352847]
[1728905811933,0.23046962,64991.0,64990.0,0.153869]
[1728905812651,0.23046962,64991.0,64989.0,0.15387]
[1728905812895,0.23046962,64991.0,64990.0,0.153869]
[1728905813162,0.23046962,64998.0,64982.0,0.307776]
[1728905813400,0.461614,64990.0,64985.0,0.153879]
[1728905813636,0.153872,64989.0,64985.0,0.153879]
[1728905813867,0.153868,64991.0,64987.0,0.158875]
[1728905814088,0.15387,64990.0,64987.0,0.005]
[1728905814315,0.15387,64990.0,64985.0,0.30776]
[1728905814549,0.23046962,64991.0,64987.0,0.153876]
[1728905814780,0.153869,64990.0,64987.0,0.153876]
[1728905815250,0.23046962,64991.0,64989.0,0.014]
[1728905815475,0.38433762,64991.0,64989.0,0.014]
[1728905815684,0.38433762,64991.0,64987.0,0.153876]
[1728905815908,0.23046962,64991.0,64987.0,0.178876]
[1728905816164,0.153867,64991.0,64987.0,0.011]
[1728905816394,0.153867,64991.0,64988.0,0.153874]
[1728905816644,0.307714,64996.0,64989.0,0.014]
[1728905816645,0.153866,64992.0,64989.0,0.014]
[1728905816881,0.153866,64992.0,64987.0,0.011]
[1728905817141,0.23046962,64998.0,64988.0,0.15352847]
[1728905817373,0.001646,64994.0,64991.0,0.307731]
[1728905817644,0.001646,64994.0,64993.0,0.153862]
[1728905819044,0.001646,64994.0,64993.0,0.160862]
[1728905819516,0.001646,64994.0,64993.0,0.174862]
[1728905820691,0.155506,64994.0,64993.0,0.021]
[1728905821186,0.001646,64994.0,64993.0,0.021]
[1728905821422,0.001646,64994.0,64993.0,0.174862]
[1728905821857,0.001646,64994.0,64993.0,0.167862]
[1728905822070,0.004646,64994.0,64993.0,0.167862]
[1728905822298,0.004646,64994.0,64993.0,0.153862]
[1728905822508,0.004646,64994.0,64993.0,0.160862]
[1728905822724,0.004646,64994.0,64993.0,0.153862]
[1728905823175,0.004646,64994.0,64993.0,0.167862]
[1728905823412,0.004646,64994.0,64993.0,0.39809047]
[1728905823655,0.001646,64994.0,64993.0,0.49359047]
[1728905823864,0.001646,64994.0,64993.0,0.50059047]
[1728905824294,0.001646,64994.0,64993.0,0.53957349]
[1728905824505,0.001646,64994.0,64993.0,0.16752847]
[1728905824737,0.001646,64994.0,64993.0,0.028]
[1728905824978,0.155506,64994.0,64993.0,0.028]
[1728905825962,0.001646,64994.0,64993.0,0.014]
[1728905826194,0.001646,64994.0,64993.0,0.33539047]
[1728905826436,0.001646,64994.0,64993.0,0.32139047]
[1728905826945,0.001646,64994.0,64993.0,0.33539047]
[1728905827178,0.001646,64994.0,64993.0,0.32139047]
[1728905827383,0.001646,64994.0,64993.0,0.32839047]
[1728905829349,0.001646,64994.0,64993.0,0.32921347]
[1728905829607,0.001646,64994.0,64993.0,0.021823]
[1728905829608,0.155506,64994.0,64993.0,0.021823]
[1728905833549,0.41403447,64994.0,64993.0,0.021823]
[1728905833991,0.63480647,64994.0,64993.0,0.021823]
[1728905834213,1.14736658,64994.0,64993.0,0.021823]
[1728905834447,1.09286658,64994.0,64993.0,0.014823]
[1728905834687,1.03756447,64994.0,64993.0,0.014823]
[1728905834897,1.04156447,64994.0,64993.0,0.015823]
[1728905835354,1.04751516,64994.0,64993.0,0.015823]
[1728905835613,1.04751516,64994.0,64993.0,0.001823]
[1728905836088,1.04351516,64994.0,64993.0,0.000823]
[1728905836507,0.153907,64974.0,64973.0,0.000823]
[1728905837883,0.154907,64974.0,64973.0,0.009823]
[1728905838323,0.59193547,64974.0,64973.0,0.009823]
[1728905838546,0.61493547,64974.0,64973.0,0.009823]
[1728905839013,0.61493547,64974.0,64973.0,0.020823]
[1728905839241,0.61393547,64974.0,64973.0,0.000823]
[1728905839472,0.61393547,64974.0,64973.0,0.002823]
[1728905839701,0.61393547,64974.0,64973.0,0.005823]
[1728905839929,0.61393547,64974.0,64973.0,0.003823]
[1728905840374,0.61993547,64974.0,64973.0,0.004823]
[1728905840609,0.259907,64974.0,64973.0,0.004823]
[1728905844109,0.159907,64974.0,64973.0,0.004823]
[1728905844586,0.006,64974.0,64973.0,0.004823]
[1728905845085,0.006,64974.0,64973.0,0.158733]
[1728905845561,0.153894,64980.0,64973.0,0.003823]
[1728905845814,0.23046962,64975.0,64973.0,0.003823]
[1728905846066,0.23046962,64983.0,64973.0,0.005823]
[1728905846300,0.53824262,64983.0,64973.0,0.019823]
[1728905846537,0.53824262,64983.0,64973.0,0.000823]
[1728905846538,0.23046962,64983.0,64973.0,0.000823]
[1728905846800,0.23046962,64983.0,64973.0,0.006823]
[1728905846801,0.153904,64976.0,64973.0,0.006823]
[1728905847039,0.001,64980.0,64973.0,0.020823]
[1728905847287,0.307774,64983.0,64977.0,0.1539]
[1728905847288,0.23046962,64982.0,64977.0,0.1539]
[1728905847740,0.23046962,64982.0,64974.0,0.15352847]
[1728905847996,0.1539,64977.0,64974.0,0.15352847]
[1728905848264,0.153898,64979.0,64974.0,0.15352847]
[1728905848516,0.307789,64980.0,64974.0,0.15352847]
[1728905848785,0.307789,64980.0,64973.0,0.092123]
[1728905848786,0.153907,64974.0,64973.0,0.015823]
[1728905849019,0.153907,64974.0,64973.0,0.003823]
[1728905849331,0.153907,64974.0,64973.0,0.000823]
[1728905849788,0.307811,64975.0,64973.0,0.000823]
[1728905849789,0.153907,64975.0,64973.0,0.000823]
[1728905850033,0.1,64984.0,64974.0,0.15352847]
[1728905850295,0.1,64984.0,64976.0,0.153902]
[1728905850296,0.23046962,64980.0,64976.0,0.153902]
[1728905850556,0.307749,64988.0,64976.0,0.153902]
[1728905850557,0.307749,64988.0,64976.0,0.15352847]
[1728905850769,0.001646,64994.0,64979.0,0.307789]
[1728905850770,0.23046962,64982.0,64979.0,0.307789]
[1728905851020,0.307738,64991.0,64981.0,0.153891]
[1728905851021,0.153877,64987.0,64981.0,0.153891]
[1728905851276,0.30775,64988.0,64981.0,0.15389]
[1728905851766,0.307736,64991.0,64978.0,0.307791]
[1728905851991,0.307759,64986.0,64979.0,0.15352847]
[1728905852447,0.153888,64982.0,64981.0,0.008]
[1728905852672,0.307787,64980.0,64977.0,0.0831]
[1728905852897,0.153896,64979.0,64973.0,0.165732]
[1728905853136,0.153896,64979.0,64973.0,0.000823]
[1728905853137,0.153907,64974.0,64973.0,0.000823]
[1728905855138,0.153907,64974.0,64973.0,0.00726386]
[1728905855352,0.153907,64974.0,64973.0,0.02126386]
[1728905855570,0.153907,64974.0,64973.0,0.00726386]
[1728905855849,0.153907,64974.0,64973.0,0.01426386]
[1728905856077,0.154907,64974.0,64973.0,0.02626386]
[1728905861235,0.254907,64974.0,64973.0,0.02626386]
[1728905861673,0.153944,64959.0,64953.0,0.153956]
[1728905861889,0.153944,64959.0,64954.0,0.15352847]
[1728905862172,0.153944,64959.0,64946.0,0.21621265]
[1728905862173,0.307893,64958.0,64953.0,0.01007413]
[1728905862393,0.15395,64956.0,64948.0,0.153968]
[1728905862611,0.153948,64957.0,64949.0,0.30749347]
[1728905862830,0.307889,64959.0,64949.0,0.16366173]
[1728905863050,0.15395,64956.0,64949.0,0.16366173]
[1728905863267,0.307904,64956.0,64949.0,0.16366173]
[1728905863487,0.23046962,64954.0,64953.0,0.014]
[1728905863702,0.38442462,64954.0,64949.0,0.01013326]
[1728905863911,0.153965,64950.0,64945.0,0.000823]
[1728905864131,0.153962,64951.0,64950.0,0.01011848]
[1728905864351,0.153962,64951.0,64949.0,0.014]
[1728905864566,0.153956,64954.0,64950.0,0.01011848]
[1728905865003,0.38442562,64954.0,64950.0,0.01011848]
[1728905865642,0.001,64951.0,64950.0,0.01011848]
[1728905865888,0.001,64951.0,64947.0,0.153971]
[1728905866097,0.001,64951.0,64950.0,0.01011848]
[1728905866572,0.001,64951.0,64947.0,0.153971]
[1728905867047,0.001,64951.0,64950.0,0.011]
[1728905867292,0.001,64951.0,64948.0,0.01014805]
[1728905867507,0.23046962,64953.0,64947.0,0.153971]
[1728905867722,0.23046962,64953.0,64949.0,0.01013326]
[1728905867939,0.15396,64952.0,64950.0,0.01011848]
[1728905868148,0.23046962,64953.0,64946.0,0.15352847]
[1728905868149,0.23046962,64953.0,64947.0,0.153971]
[1728905868414,0.307888,64959.0,64948.0,0.16367652]
[1728905868612,0.001,64951.0,64948.0,0.16367652]
[1728905868821,0.001,64951.0,64950.0,0.153962]
[1728905869234,0.307875,64962.0,64950.0,0.02411848]
[1728905869452,0.307875,64962.0,64953.0,0.153957]
[1728905869453,0.23046962,64954.0,64953.0,0.153957]
[1728905869700,0.153942,64960.0,64953.0,0.46144147]
[1728905869949,0.153942,64960.0,64954.0,0.153954]
[1728905870162,0.38440862,64961.0,64955.0,0.153952]
[1728905870371,0.23046962,64961.0,64953.0,0.15352847]
[1728905870579,0.153945,64958.0,64953.0,0.15352847]
[1728905870808,0.153942,64960.0,64953.0,0.1636026]
[1728905871078,0.153932,64964.0,64958.0,0.153944]
[1728905871327,0.23046962,64960.0,64958.0,0.15352847]
[1728905871540,0.153932,64964.0,64958.0,0.30747247]
[1728905871761,0.1713,64976.0,64959.0,0.15352847]
[1728905871974,0.00588855,64982.0,64959.0,0.15352847]
[1728905871975,0.307803,64977.0,64962.0,0.307868]
[1728905872188,0.307803,64977.0,64963.0,0.15352847]
[1728905872424,0.53828362,64975.0,64967.0,0.153924]
[1728905872640,0.153943,64959.0,64954.0,0.04596671]
[1728905872849,0.153943,64959.0,64951.0,0.09193342]
[1728905872850,0.153943,64959.0,64958.0,0.013]
[1728905873265,0.153943,64959.0,64958.0,0.002]
[1728905873685,0.153943,64959.0,64950.0,0.153962]
[1728905873908,0.153946,64958.0,64951.0,0.15352847]
[1728905874115,0.461823,64960.0,64959.0,0.002]
[1728905874561,0.307883,64960.0,64951.0,0.15352847]
[1728905874790,0.307883,64960.0,64952.0,0.01008892]
[1728905875015,0.154943,64959.0,64952.0,0.01008892]
[1728905875254,0.154943,64959.0,64958.0,0.014]
[1728905875454,0.153949,64957.0,64952.0,0.01008892]
[1728905875662,0.307883,64960.0,64951.0,0.30748947]
[1728905875663,0.153946,64958.0,64951.0,0.30748947]
[1728905875877,0.153946,64958.0,64953.0,0.01007413]